[Event "*** Titled Tuesday Blitz"]
[Site "Chess.com"]
[Date "2018.06.05"]
[Round "3"]
[White "wonderfultime"]
[Black "Tesla37"]
[Result "1-0"]
[WhiteElo "2859"]
[BlackElo "2634"]
[TimeControl "180+2"]
[EndTime "13:42:36 PDT"]
[Termination "wonderfultime won by resignation"]

1. d4 {[%clk 0:03:01.9]} 1... Nf6 {[%clk 0:03:00.2]} 2. Nf3 {[%clk 0:03:02.7]}
2... e6 {[%clk 0:03:00.1]} 3. Bf4 {[%clk 0:03:03.9]} 3... c5 {[%clk 0:03:00.2]}
4. c3 {[%clk 0:03:04.8]} 4... d5 {[%clk 0:03:01]} 5. e3 {[%clk 0:03:05.8]} 5...
Nc6 {[%clk 0:03:01.9]} 6. Nbd2 {[%clk 0:03:07.3]} 6... Bd6 {[%clk 0:03:01.5]} 7.
Bg3 {[%clk 0:03:08.6]} 7... b6 {[%clk 0:02:56.6]} 8. Bb5 {[%clk 0:03:07]} 8...
Bb7 {[%clk 0:02:55.5]} 9. Qa4 {[%clk 0:03:04.8]} 9... Qc7 {[%clk 0:02:40.1]} 10.
Bxd6 {[%clk 0:02:55.1]} 10... Qxd6 {[%clk 0:02:40.3]} 11. Ne5 {[%clk 0:02:57]}
11... Rc8 {[%clk 0:02:20.1]} 12. Qxa7 {[%clk 0:02:53.8]} 12... Qc7 {[%clk
0:02:16.3]} 13. dxc5 {[%clk 0:02:20.9]} 13... bxc5 {[%clk 0:01:50.4]} 14. Nxc6
{[%clk 0:02:12.9]} 14... Bxc6 {[%clk 0:01:48.1]} 15. Qxc5 {[%clk 0:02:14.3]}
15... Bxb5 {[%clk 0:01:43]} 16. Qxb5+ {[%clk 0:02:13.9]} 16... Nd7 {[%clk
0:01:44.5]} 17. Qe2 {[%clk 0:02:04]} 17... O-O {[%clk 0:01:42.2]} 18. O-O {[%clk
0:02:04.8]} 18... Rb8 {[%clk 0:01:42.7]} 19. Rfb1 {[%clk 0:01:52.7]} 19... Rfc8
{[%clk 0:01:41.1]} 20. h3 {[%clk 0:01:44.8]} 20... Nc5 {[%clk 0:01:38.4]} 21. a3
{[%clk 0:01:39.3]} 21... Na4 {[%clk 0:01:36.5]} 22. Ra2 {[%clk 0:01:08.7]} 22...
Rb6 {[%clk 0:01:27.3]} 23. Qd1 {[%clk 0:01:04.8]} 23... Qa7 {[%clk 0:01:26.7]}
24. Rc1 {[%clk 0:00:57.1]} 24... Nxb2 {[%clk 0:01:21.4]} 25. Qc2 {[%clk
0:00:58.1]} 25... Na4 {[%clk 0:01:20]} 26. Qd3 {[%clk 0:00:51.3]} 26... Rbc6
{[%clk 0:01:13.9]} 27. c4 {[%clk 0:00:46.3]} 27... Nb6 {[%clk 0:00:50.6]} 28.
Rac2 {[%clk 0:00:47.3]} 28... Qa4 {[%clk 0:00:33.9]} 29. c5 {[%clk 0:00:36.8]}
29... Nd7 {[%clk 0:00:34.6]} 30. Qb3 {[%clk 0:00:38.1]} 30... Qa5 {[%clk
0:00:31.6]} 31. Qb4 {[%clk 0:00:38.3]} 31... Ra8 {[%clk 0:00:26.2]} 32. Nb3
{[%clk 0:00:16.2]} 32... Qxa3 {[%clk 0:00:24.6]} 33. Qxa3 {[%clk 0:00:18.1]}
33... Rxa3 {[%clk 0:00:25]} 34. Nd4 {[%clk 0:00:20]} 34... Rc8 {[%clk
0:00:25.9]} 35. c6 {[%clk 0:00:20.2]} 35... Ne5 {[%clk 0:00:24.6]} 36. Rb1
{[%clk 0:00:21.3]} 36... g6 {[%clk 0:00:17.9]} 37. Rb7 {[%clk 0:00:22.1]} 37...
Nc4 {[%clk 0:00:10.1]} 38. c7 {[%clk 0:00:20.3]} 38... Kg7 {[%clk 0:00:09.4]}
39. Nb5 {[%clk 0:00:20.5]} 39... Rb3 {[%clk 0:00:10.6]} 40. Rb8 {[%clk
0:00:21.4]} 40... Rxc7 {[%clk 0:00:11.8]} 41. Nxc7 {[%clk 0:00:12]} 41... Rxb8
{[%clk 0:00:12.5]} 42. Na6 {[%clk 0:00:13.6]} 42... Ra8 {[%clk 0:00:13.2]} 43.
Nc5 {[%clk 0:00:14.7]} 43... Kf6 {[%clk 0:00:13.7]} 44. Kh2 {[%clk 0:00:15.2]}
44... Ke7 {[%clk 0:00:14.7]} 45. Kg3 {[%clk 0:00:16.2]} 45... f5 {[%clk
0:00:15.6]} 46. h4 {[%clk 0:00:17.2]} 46... Kd6 {[%clk 0:00:16.2]} 47. Nd3
{[%clk 0:00:18.6]} 47... Ra3 {[%clk 0:00:15.5]} 48. Ne1 {[%clk 0:00:17.2]} 48...
e5 {[%clk 0:00:16.1]} 49. Nf3 {[%clk 0:00:18.6]} 49... h6 {[%clk 0:00:14.7]} 50.
Kh2 {[%clk 0:00:19.8]} 50... Na5 {[%clk 0:00:13.1]} 51. Rc8 {[%clk 0:00:20.7]}
51... Nc6 {[%clk 0:00:12.9]} 52. Rh8 {[%clk 0:00:21.8]} 52... h5 {[%clk
0:00:11]} 53. Rg8 {[%clk 0:00:23.2]} 53... Ne7 {[%clk 0:00:11.3]} 54. Rd8+
{[%clk 0:00:24.7]} 54... Ke6 {[%clk 0:00:12.4]} 55. Ng5+ {[%clk 0:00:25]} 55...
Kf6 {[%clk 0:00:12.8]} 56. Rf8+ {[%clk 0:00:26.5]} 56... Kg7 {[%clk 0:00:13.3]}
57. Rf7+ {[%clk 0:00:28.4]} 57... Kg8 {[%clk 0:00:14.4]} 58. Rxe7 {[%clk
0:00:30.3]} 1-0

[Event "*** Titled Tuesday Blitz"]
[Site "Chess.com"]
[Date "2018.06.05"]
[Round "3"]
[White "dretch"]
[Black "Korchmar_Vasiliy"]
[Result "1/2-1/2"]
[WhiteElo "2753"]
[BlackElo "2712"]
[TimeControl "180+2"]
[EndTime "13:42:37 PDT"]
[Termination "Game drawn - insufficient material"]

1. d4 {[%clk 0:03:01.9]} 1... Nf6 {[%clk 0:03:00.6]} 2. c4 {[%clk 0:03:02.4]}
2... e6 {[%clk 0:03:01.5]} 3. Nc3 {[%clk 0:03:03]} 3... Bb4 {[%clk 0:03:02.4]}
4. Qc2 {[%clk 0:03:04.2]} 4... b6 {[%clk 0:03:02.6]} 5. e4 {[%clk 0:03:03.2]}
5... c5 {[%clk 0:03:03.4]} 6. a3 {[%clk 0:03:04.2]} 6... Bxc3+ {[%clk
0:03:03.3]} 7. bxc3 {[%clk 0:03:06.1]} 7... Bb7 {[%clk 0:02:39]} 8. d5 {[%clk
0:03:06.4]} 8... d6 {[%clk 0:02:19.4]} 9. Bd3 {[%clk 0:02:53.1]} 9... O-O {[%clk
0:02:18.3]} 10. Ne2 {[%clk 0:02:52.1]} 10... b5 {[%clk 0:02:06.7]} 11. cxb5
{[%clk 0:02:50.2]} 11... exd5 {[%clk 0:02:05.9]} 12. exd5 {[%clk 0:02:51.1]}
12... Bxd5 {[%clk 0:02:03.4]} 13. c4 {[%clk 0:02:47.9]} 13... Bxg2 {[%clk
0:02:01.6]} 14. Rg1 {[%clk 0:02:48.8]} 14... Bf3 {[%clk 0:01:45.7]} 15. Bh6
{[%clk 0:02:32.9]} 15... g6 {[%clk 0:01:30.9]} 16. Bxg6 {[%clk 0:02:19.7]} 16...
fxg6 {[%clk 0:01:26.1]} 17. Rxg6+ {[%clk 0:02:19.8]} 17... Kf7 {[%clk
0:01:23.1]} 18. Rg7+ {[%clk 0:02:20.6]} 18... Ke8 {[%clk 0:01:21.3]} 19. Qf5
{[%clk 0:02:13.9]} 19... Bg4 {[%clk 0:01:13.2]} 20. Rxg4 {[%clk 0:02:13.4]}
20... Nbd7 {[%clk 0:01:11.2]} 21. Bxf8 {[%clk 0:01:40]} 21... Nxg4 {[%clk
0:01:11.8]} 22. Bxd6 {[%clk 0:01:39.5]} 22... Qf6 {[%clk 0:01:08.3]} 23. Qe4+
{[%clk 0:01:04.1]} 23... Kf7 {[%clk 0:01:09.1]} 24. Qxh7+ {[%clk 0:01:04.9]}
24... Ke8 {[%clk 0:01:06.8]} 25. Qg8+ {[%clk 0:00:56.4]} 25... Nf8 {[%clk
0:01:05.4]} 26. Qxf8+ {[%clk 0:00:52.2]} 26... Qxf8 {[%clk 0:01:06.2]} 27. Bxf8
{[%clk 0:00:54.1]} 27... Kxf8 {[%clk 0:01:08]} 28. h3 {[%clk 0:00:50.8]} 28...
Ne5 {[%clk 0:01:07.5]} 29. a4 {[%clk 0:00:39.2]} 29... Nxc4 {[%clk 0:01:06.2]}
30. Rc1 {[%clk 0:00:39.4]} 30... Nb2 {[%clk 0:01:04.9]} 31. Rc2 {[%clk
0:00:34.9]} 31... Nxa4 {[%clk 0:01:05.1]} 32. Rc4 {[%clk 0:00:35.4]} 32... Nb2
{[%clk 0:01:03]} 33. Rf4+ {[%clk 0:00:35.4]} 33... Ke7 {[%clk 0:01:00]} 34. Kd2
{[%clk 0:00:30]} 34... Rb8 {[%clk 0:01:01.4]} 35. Nc3 {[%clk 0:00:26.7]} 35...
c4 {[%clk 0:00:57.9]} 36. h4 {[%clk 0:00:15.1]} 36... Ke6 {[%clk 0:00:55.2]} 37.
Kc2 {[%clk 0:00:15.1]} 37... Nd3 {[%clk 0:00:55.8]} 38. Rxc4 {[%clk 0:00:14.7]}
38... Nxf2 {[%clk 0:00:57.1]} 39. Rc7 {[%clk 0:00:13.1]} 39... Rh8 {[%clk
0:00:54.9]} 40. Rc6+ {[%clk 0:00:08.9]} 40... Ke5 {[%clk 0:00:52.6]} 41. Rc4
{[%clk 0:00:10.8]} 41... Kf5 {[%clk 0:00:43.6]} 42. Kb3 {[%clk 0:00:10.2]} 42...
Ng4 {[%clk 0:00:43.5]} 43. Rc5+ {[%clk 0:00:09.3]} 43... Ne5 {[%clk 0:00:42.2]}
44. Rc7 {[%clk 0:00:10.5]} 44... Rxh4 {[%clk 0:00:37.2]} 45. Rxa7 {[%clk
0:00:11.5]} 45... Ke6 {[%clk 0:00:38.7]} 46. Rc7 {[%clk 0:00:07.1]} 46... Kd6
{[%clk 0:00:37.3]} 47. b6 {[%clk 0:00:08.4]} 47... Nc6 {[%clk 0:00:36.4]} 48.
Nb5+ {[%clk 0:00:05.3]} 48... Kc5 {[%clk 0:00:35.3]} 49. Na7 {[%clk 0:00:02.8]}
49... Rh3+ {[%clk 0:00:29.5]} 50. Kb2 {[%clk 0:00:03.9]} 50... Rh2+ {[%clk
0:00:30.9]} 51. Kc3 {[%clk 0:00:05]} 51... Rh3+ {[%clk 0:00:31.6]} 52. Kd2
{[%clk 0:00:06.3]} 52... Rh2+ {[%clk 0:00:32]} 53. Ke3 {[%clk 0:00:07]} 53...
Rh3+ {[%clk 0:00:32.3]} 54. Kf2 {[%clk 0:00:08.2]} 54... Kxb6 {[%clk 0:00:34.2]}
55. Rxc6+ {[%clk 0:00:09]} 55... Kxa7 {[%clk 0:00:35.7]} 56. Rd6 {[%clk
0:00:10.1]} 56... Kb7 {[%clk 0:00:37]} 57. Re6 {[%clk 0:00:11.1]} 57... Rh5
{[%clk 0:00:38]} 58. Rf6 {[%clk 0:00:11.9]} 58... Kc7 {[%clk 0:00:39.3]} 59. Rg6
{[%clk 0:00:12.8]} 59... Kd7 {[%clk 0:00:40.7]} 60. Rg7+ {[%clk 0:00:13.3]}
60... Ke6 {[%clk 0:00:41.7]} 61. Rg3 {[%clk 0:00:14.2]} 61... Kf5 {[%clk
0:00:42.5]} 62. Kg2 {[%clk 0:00:15.1]} 62... Kf4 {[%clk 0:00:43.5]} 63. Rf3+
{[%clk 0:00:16.3]} 63... Ke4 {[%clk 0:00:44.9]} 64. Rh3 {[%clk 0:00:16.9]} 64...
Rg5+ {[%clk 0:00:45.6]} 65. Rg3 {[%clk 0:00:17.8]} 65... Rxg3+ {[%clk
0:00:46.7]} 66. Kxg3 {[%clk 0:00:19.2]} 1/2-1/2

[Event "*** Titled Tuesday Blitz"]
[Site "Chess.com"]
[Date "2018.06.05"]
[Round "3"]
[White "BogdanDeac"]
[Black "Doraemon7"]
[Result "1-0"]
[WhiteElo "2681"]
[BlackElo "2404"]
[TimeControl "180+2"]
[EndTime "13:42:38 PDT"]
[Termination "BogdanDeac won by resignation"]

1. d4 {[%clk 0:03:01.9]} 1... d5 {[%clk 0:02:57.7]} 2. c4 {[%clk 0:03:02.6]}
2... c6 {[%clk 0:02:58.3]} 3. Nf3 {[%clk 0:03:02.8]} 3... Nf6 {[%clk 0:02:55.8]}
4. Qc2 {[%clk 0:03:03.3]} 4... dxc4 {[%clk 0:02:51.2]} 5. Qxc4 {[%clk
0:03:03.9]} 5... Bg4 {[%clk 0:02:51.7]} 6. Nc3 {[%clk 0:03:04.3]} 6... Nbd7
{[%clk 0:02:49.4]} 7. e4 {[%clk 0:03:04.2]} 7... e5 {[%clk 0:02:33.4]} 8. Nxe5
{[%clk 0:03:03.4]} 8... Nxe5 {[%clk 0:02:29]} 9. dxe5 {[%clk 0:03:04]} 9... Be6
{[%clk 0:02:30.5]} 10. Qd3 {[%clk 0:03:01.4]} 10... Qxd3 {[%clk 0:02:24.1]} 11.
Bxd3 {[%clk 0:03:01.5]} 11... Ng4 {[%clk 0:02:26]} 12. f4 {[%clk 0:02:43]} 12...
Bc5 {[%clk 0:02:24.8]} 13. Be2 {[%clk 0:02:43.3]} 13... Ne3 {[%clk 0:02:11.1]}
14. Bxe3 {[%clk 0:02:28.4]} 14... Bxe3 {[%clk 0:02:12.9]} 15. Rf1 {[%clk
0:02:28.7]} 15... O-O-O {[%clk 0:01:59]} 16. Rf3 {[%clk 0:02:29.1]} 16... Bd4
{[%clk 0:01:30.4]} 17. Rd1 {[%clk 0:02:20.1]} 17... Kc7 {[%clk 0:01:09.4]} 18.
a3 {[%clk 0:02:07.8]} 18... Bb3 {[%clk 0:00:40.2]} 19. Rd2 {[%clk 0:01:38.2]}
19... Rhe8 {[%clk 0:00:24.4]} 20. Rfd3 {[%clk 0:01:29.4]} 20... Bc5 {[%clk
0:00:21.6]} 21. Nb5+ {[%clk 0:01:14.1]} 21... cxb5 {[%clk 0:00:20.4]} 22. Rxb3
{[%clk 0:01:14.5]} 22... a6 {[%clk 0:00:21.4]} 23. Rd5 {[%clk 0:01:10.5]} 23...
Kb6 {[%clk 0:00:19.1]} 24. Rbd3 {[%clk 0:01:09.3]} 24... Be7 {[%clk 0:00:18.1]}
25. Kf2 {[%clk 0:01:07.6]} 25... Kc7 {[%clk 0:00:18.4]} 26. Bg4 {[%clk
0:01:06.1]} 26... Kb6 {[%clk 0:00:18.6]} 27. g3 {[%clk 0:01:04.4]} 27... h6
{[%clk 0:00:19.4]} 28. h4 {[%clk 0:01:04.3]} 28... Bc5+ {[%clk 0:00:20.4]} 29.
Kf3 {[%clk 0:01:04.4]} 29... Be7 {[%clk 0:00:21.5]} 30. h5 {[%clk 0:01:04.2]}
30... Kc7 {[%clk 0:00:21.8]} 31. Rd7+ {[%clk 0:00:53.4]} 31... Kb6 {[%clk
0:00:23.1]} 32. R7d5 {[%clk 0:00:48.1]} 32... Kc7 {[%clk 0:00:23.7]} 33. Bd7
{[%clk 0:00:48.2]} 33... Rf8 {[%clk 0:00:23.3]} 34. Ke2 {[%clk 0:00:42.1]} 34...
Kb6 {[%clk 0:00:23.1]} 35. Bf5 {[%clk 0:00:35.6]} 35... Kc6 {[%clk 0:00:18.8]}
36. e6 {[%clk 0:00:33]} 36... fxe6 {[%clk 0:00:16.8]} 37. Bxe6 {[%clk
0:00:33.1]} 37... Rxd5 {[%clk 0:00:17.8]} 38. Bxd5+ {[%clk 0:00:32.7]} 38... Kb6
{[%clk 0:00:19.2]} 39. e5 {[%clk 0:00:31.3]} 39... Rc8 {[%clk 0:00:20.4]} 40.
Rd2 {[%clk 0:00:25.5]} 40... Rc1 {[%clk 0:00:19.9]} 41. Be4 {[%clk 0:00:25.2]}
41... Rg1 {[%clk 0:00:20.2]} 42. Kf3 {[%clk 0:00:25.1]} 42... Kc7 {[%clk
0:00:16.4]} 43. Rc2+ {[%clk 0:00:21]} 43... Kb6 {[%clk 0:00:17.4]} 44. Rd2
{[%clk 0:00:22.1]} 44... Rc1 {[%clk 0:00:17.9]} 45. Kg4 {[%clk 0:00:20.1]} 45...
Bc5 {[%clk 0:00:15.9]} 46. Rd7 {[%clk 0:00:19.9]} 46... Re1 {[%clk 0:00:12.8]}
47. Rxb7+ {[%clk 0:00:19.9]} 47... Ka5 {[%clk 0:00:14.2]} 48. Bf3 {[%clk
0:00:20.5]} 48... b4 {[%clk 0:00:14.8]} 49. axb4+ {[%clk 0:00:20.7]} 49... Bxb4
{[%clk 0:00:16.7]} 50. Rxg7 {[%clk 0:00:21.5]} 50... Ka4 {[%clk 0:00:17.6]} 51.
Rb7 {[%clk 0:00:20.2]} 51... a5 {[%clk 0:00:18.4]} 52. Kf5 {[%clk 0:00:21.2]}
52... Kb3 {[%clk 0:00:19.8]} 53. e6 {[%clk 0:00:21.7]} 53... Kxb2 {[%clk
0:00:21.2]} 54. Bd5 {[%clk 0:00:22.3]} 54... Rd1 {[%clk 0:00:20.8]} 55. Be4
{[%clk 0:00:22.8]} 55... Rd8 {[%clk 0:00:19.2]} 56. e7 {[%clk 0:00:23.5]} 56...
Re8 {[%clk 0:00:20.7]} 57. Ke6 {[%clk 0:00:24.2]} 57... Kc3 {[%clk 0:00:22]} 58.
Bg6 {[%clk 0:00:24.3]} 58... Rc8 {[%clk 0:00:22.2]} 59. e8=Q {[%clk 0:00:24.8]}
59... Rxe8+ {[%clk 0:00:23.8]} 60. Bxe8 {[%clk 0:00:26.5]} 60... a4 {[%clk
0:00:25.7]} 61. Bxa4 {[%clk 0:00:26.6]} 1-0

[Event "*** Titled Tuesday Blitz"]
[Site "Chess.com"]
[Date "2018.06.05"]
[Round "3"]
[White "Alexander_Moskalenko"]
[Black "PaulfromSPb"]
[Result "1-0"]
[WhiteElo "2763"]
[BlackElo "2424"]
[TimeControl "180+2"]
[EndTime "13:42:49 PDT"]
[Termination "Alexander_Moskalenko won by resignation"]

1. d4 {[%clk 0:03:01]} 1... Nf6 {[%clk 0:03:00.6]} 2. Bf4 {[%clk 0:02:59.4]}
2... e6 {[%clk 0:03:00]} 3. e3 {[%clk 0:03:00]} 3... c5 {[%clk 0:02:58.4]} 4.
Nf3 {[%clk 0:03:00.3]} 4... Nc6 {[%clk 0:02:59.5]} 5. c3 {[%clk 0:03:01]} 5...
b6 {[%clk 0:02:58.1]} 6. Nbd2 {[%clk 0:03:01.8]} 6... Be7 {[%clk 0:02:58]} 7.
Bd3 {[%clk 0:03:02]} 7... Nh5 {[%clk 0:02:57.5]} 8. Be5 {[%clk 0:03:01.4]} 8...
Nxe5 {[%clk 0:02:56.8]} 9. Nxe5 {[%clk 0:03:03.3]} 9... Nf6 {[%clk 0:02:55.5]}
10. Qf3 {[%clk 0:03:03.6]} 10... Rb8 {[%clk 0:02:55.4]} 11. O-O {[%clk
0:02:59.7]} 11... O-O {[%clk 0:02:52.9]} 12. Qh3 {[%clk 0:02:44.1]} 12... h6
{[%clk 0:02:48.2]} 13. a4 {[%clk 0:02:35.8]} 13... Qc7 {[%clk 0:02:48.3]} 14.
Ng4 {[%clk 0:02:32.2]} 14... Nxg4 {[%clk 0:02:42.8]} 15. Qxg4 {[%clk 0:02:34.1]}
15... d6 {[%clk 0:02:39]} 16. Qe4 {[%clk 0:02:32.8]} 16... g6 {[%clk 0:02:34.7]}
17. Qf4 {[%clk 0:02:33.8]} 17... Bg5 {[%clk 0:02:32.3]} 18. Qg3 {[%clk
0:02:35.2]} 18... Bf6 {[%clk 0:02:29.9]} 19. Ne4 {[%clk 0:02:34.2]} 19... Be7
{[%clk 0:02:27.9]} 20. b4 {[%clk 0:02:11.4]} 20... Bb7 {[%clk 0:02:23]} 21. dxc5
{[%clk 0:02:12]} 21... bxc5 {[%clk 0:02:18.3]} 22. Nxc5 {[%clk 0:02:11.8]} 22...
Ba8 {[%clk 0:01:51]} 23. Nxe6 {[%clk 0:02:10]} 23... Qxc3 {[%clk 0:01:42.9]} 24.
Nf4 {[%clk 0:01:01]} 24... Rxb4 {[%clk 0:01:37.9]} 25. Bxg6 {[%clk 0:00:43.7]}
25... Kh8 {[%clk 0:01:15.6]} 26. Qh3 {[%clk 0:00:35.1]} 26... Qg7 {[%clk
0:01:01.1]} 27. Bh5 {[%clk 0:00:36.2]} 27... Bf6 {[%clk 0:00:57.1]} 28. Rad1
{[%clk 0:00:36.2]} 28... Be5 {[%clk 0:00:57.8]} 29. Bf3 {[%clk 0:00:37.3]} 29...
Bxf3 {[%clk 0:00:52.4]} 30. Qxf3 {[%clk 0:00:39.2]} 30... Rxa4 {[%clk
0:00:53.1]} 31. g3 {[%clk 0:00:39.5]} 31... Qf6 {[%clk 0:00:51.9]} 32. Qc6
{[%clk 0:00:38]} 32... Ra5 {[%clk 0:00:48.8]} 33. Rd2 {[%clk 0:00:37.4]} 33...
Rc5 {[%clk 0:00:47.6]} 34. Qd7 {[%clk 0:00:36.5]} 34... a5 {[%clk 0:00:47.3]}
35. Rfd1 {[%clk 0:00:36.9]} 35... Rd8 {[%clk 0:00:45.2]} 36. Qa7 {[%clk
0:00:36.8]} 36... Rdc8 {[%clk 0:00:43.4]} 37. Nd3 {[%clk 0:00:36.9]} 37... Rd5
{[%clk 0:00:42.2]} 38. Nxe5 {[%clk 0:00:35.9]} 38... Rxd2 {[%clk 0:00:37.9]} 39.
Nxf7+ {[%clk 0:00:35.3]} 39... Qxf7 {[%clk 0:00:38.9]} 40. Qxf7 {[%clk
0:00:36.4]} 40... Rxd1+ {[%clk 0:00:39.8]} 41. Kg2 {[%clk 0:00:38.3]} 41... Rc5
{[%clk 0:00:39.4]} 42. g4 {[%clk 0:00:32.7]} 42... Rd2 {[%clk 0:00:38.8]} 43.
Kg3 {[%clk 0:00:31.1]} 43... a4 {[%clk 0:00:37.2]} 44. Qe8+ {[%clk 0:00:31.9]}
44... Kg7 {[%clk 0:00:38.4]} 45. Qxa4 {[%clk 0:00:33.3]} 45... Rcc2 {[%clk
0:00:39]} 46. Qf4 {[%clk 0:00:34]} 46... Rc1 {[%clk 0:00:34.2]} 47. h3 {[%clk
0:00:27.6]} 47... Rg1+ {[%clk 0:00:34.6]} 48. Kh2 {[%clk 0:00:29]} 48... Rf1
{[%clk 0:00:35.3]} 49. Kg2 {[%clk 0:00:30.5]} 49... Rfd1 {[%clk 0:00:35.8]} 50.
Qf5 {[%clk 0:00:30.2]} 50... Rd5 {[%clk 0:00:36.1]} 51. Qd7+ {[%clk 0:00:30.2]}
51... Kf6 {[%clk 0:00:37]} 52. Qd8+ {[%clk 0:00:31.6]} 52... Kg6 {[%clk
0:00:37.9]} 53. Qe8+ {[%clk 0:00:33.1]} 53... Kg7 {[%clk 0:00:39]} 54. h4 {[%clk
0:00:34.3]} 54... Re5 {[%clk 0:00:39.1]} 55. Qd7+ {[%clk 0:00:34.7]} 55... Kf6
{[%clk 0:00:40.1]} 56. Qh7 {[%clk 0:00:32.9]} 56... h5 {[%clk 0:00:40.9]} 57.
g5+ {[%clk 0:00:34.2]} 57... Ke6 {[%clk 0:00:42]} 58. Qxh5 {[%clk 0:00:35.5]}
58... Rd2 {[%clk 0:00:40.1]} 59. Qg6+ {[%clk 0:00:36.3]} 59... Kd5 {[%clk
0:00:41.3]} 60. Qf7+ {[%clk 0:00:36.9]} 60... Kc5 {[%clk 0:00:41.3]} 61. Qc7+
{[%clk 0:00:36.4]} 61... Kd5 {[%clk 0:00:42.3]} 62. Qf7+ {[%clk 0:00:36.9]}
62... Ke4 {[%clk 0:00:43.1]} 63. Qf4+ {[%clk 0:00:38.1]} 63... Kd3 {[%clk
0:00:44.1]} 64. g6 {[%clk 0:00:39]} 64... Re4 {[%clk 0:00:37.3]} 65. Qxe4+
{[%clk 0:00:34.1]} 65... Kxe4 {[%clk 0:00:37.6]} 66. g7 {[%clk 0:00:36]} 1-0

[Event "*** Titled Tuesday Blitz"]
[Site "Chess.com"]
[Date "2018.06.05"]
[Round "3"]
[White "EndgameGrinder"]
[Black "nubair1198"]
[Result "0-1"]
[WhiteElo "2525"]
[BlackElo "2539"]
[TimeControl "180+2"]
[EndTime "13:42:53 PDT"]
[Termination "nubair1198 won by resignation"]

1. e4 {[%clk 0:03:01.9]} 1... c6 {[%clk 0:02:59.7]} 2. d4 {[%clk 0:03:02.7]}
2... d5 {[%clk 0:02:57.2]} 3. Nd2 {[%clk 0:03:04.3]} 3... dxe4 {[%clk
0:02:57.7]} 4. Nxe4 {[%clk 0:03:06.2]} 4... Bf5 {[%clk 0:02:59.3]} 5. Ng3 {[%clk
0:03:07.2]} 5... Bg6 {[%clk 0:03:00.9]} 6. h4 {[%clk 0:03:08.5]} 6... h6 {[%clk
0:03:01.9]} 7. Nf3 {[%clk 0:03:10.1]} 7... e6 {[%clk 0:03:02.9]} 8. Ne5 {[%clk
0:03:10.6]} 8... Bh7 {[%clk 0:03:04.3]} 9. Bd3 {[%clk 0:03:12]} 9... Bxd3 {[%clk
0:03:05.2]} 10. Qxd3 {[%clk 0:03:13.9]} 10... Nd7 {[%clk 0:03:02.2]} 11. Nxd7
{[%clk 0:03:02.5]} 11... Qxd7 {[%clk 0:03:03.1]} 12. Be3 {[%clk 0:03:01.5]}
12... Nf6 {[%clk 0:03:03.2]} 13. O-O-O {[%clk 0:03:01.5]} 13... Be7 {[%clk
0:02:52.7]} 14. Kb1 {[%clk 0:02:55.6]} 14... O-O {[%clk 0:02:52.5]} 15. Ne4
{[%clk 0:02:53.3]} 15... Rfd8 {[%clk 0:02:52]} 16. Nxf6+ {[%clk 0:02:41.5]}
16... Bxf6 {[%clk 0:02:53.9]} 17. g4 {[%clk 0:02:42.9]} 17... Be7 {[%clk
0:02:45.6]} 18. g5 {[%clk 0:02:41.4]} 18... h5 {[%clk 0:02:46]} 19. g6 {[%clk
0:02:40.5]} 19... Qd5 {[%clk 0:02:39.5]} 20. gxf7+ {[%clk 0:02:36.6]} 20... Kxf7
{[%clk 0:02:41.4]} 21. Rhg1 {[%clk 0:02:18.8]} 21... Qf5 {[%clk 0:02:37.6]} 22.
Qe2 {[%clk 0:02:16.6]} 22... c5 {[%clk 0:02:35.4]} 23. dxc5 {[%clk 0:02:13.5]}
23... Rxd1+ {[%clk 0:02:27]} 24. Rxd1 {[%clk 0:02:14]} 24... Rd8 {[%clk
0:02:28.6]} 25. Rg1 {[%clk 0:01:56.9]} 25... Rd5 {[%clk 0:01:46.8]} 26. a3
{[%clk 0:01:47.3]} 26... Bxh4 {[%clk 0:01:31.3]} 27. Qb5 {[%clk 0:01:29.8]}
27... b6 {[%clk 0:01:25.9]} 28. Qc6 {[%clk 0:01:23.8]} 28... Bf6 {[%clk
0:01:11]} 29. cxb6 {[%clk 0:00:42.4]} 29... axb6 {[%clk 0:01:12.9]} 30. Qxb6
{[%clk 0:00:33.6]} 30... Rb5 {[%clk 0:00:39.9]} 31. Qc7+ {[%clk 0:00:34.2]}
31... Kg8 {[%clk 0:00:41.1]} 32. Bc1 {[%clk 0:00:35.4]} 32... Qxf2 {[%clk
0:00:39.4]} 33. Rd1 {[%clk 0:00:27.9]} 33... Kh7 {[%clk 0:00:39.3]} 34. Qc6
{[%clk 0:00:24.3]} 34... Rb6 {[%clk 0:00:38.5]} 35. Qe4+ {[%clk 0:00:24.6]}
35... Qf5 {[%clk 0:00:38.8]} 36. Qe2 {[%clk 0:00:24.8]} 36... h4 {[%clk
0:00:38.6]} 37. Rh1 {[%clk 0:00:22.2]} 37... g5 {[%clk 0:00:32.7]} 38. Rf1
{[%clk 0:00:22.8]} 38... Qe5 {[%clk 0:00:32.1]} 39. Qxe5 {[%clk 0:00:14.8]}
39... Bxe5 {[%clk 0:00:34]} 40. Bxg5 {[%clk 0:00:15.8]} 40... Rxb2+ {[%clk
0:00:29.2]} 41. Kc1 {[%clk 0:00:16.9]} 41... Ra2 {[%clk 0:00:29.6]} 42. Kd2
{[%clk 0:00:15.6]} 42... h3 {[%clk 0:00:29.6]} 43. Bf4 {[%clk 0:00:15.4]} 43...
Bxf4+ {[%clk 0:00:21.3]} 44. Rxf4 {[%clk 0:00:17.3]} 44... Rxa3 {[%clk
0:00:23.2]} 45. Rh4+ {[%clk 0:00:16.4]} 45... Kg6 {[%clk 0:00:24.7]} 46. c3
{[%clk 0:00:14]} 46... h2 {[%clk 0:00:21.1]} 47. Kd3 {[%clk 0:00:14.3]} 47...
Ra2 {[%clk 0:00:21.6]} 48. Ke3 {[%clk 0:00:14.6]} 48... Kg5 {[%clk 0:00:22.6]}
49. Rh8 {[%clk 0:00:15]} 49... Kg4 {[%clk 0:00:24]} 50. c4 {[%clk 0:00:11.2]}
50... Kg3 {[%clk 0:00:22.3]} 51. c5 {[%clk 0:00:10.3]} 51... Kg2 {[%clk
0:00:14.4]} 52. Rg8+ {[%clk 0:00:09.7]} 52... Kf1 {[%clk 0:00:15.2]} 53. Rh8
{[%clk 0:00:09.3]} 53... Kg1 {[%clk 0:00:16.5]} 54. Kd3 {[%clk 0:00:02.9]} 54...
h1=Q {[%clk 0:00:16.9]} 55. Rxh1+ {[%clk 0:00:04.8]} 55... Kxh1 {[%clk
0:00:18.8]} 56. c6 {[%clk 0:00:06.6]} 56... Ra6 {[%clk 0:00:19.7]} 57. c7 {[%clk
0:00:07.6]} 57... Rc6 {[%clk 0:00:21.6]} 58. c8=Q {[%clk 0:00:09.3]} 58... Rxc8
{[%clk 0:00:23.5]} 0-1